bitfinex/quotes_SOLUSD_20250924
["timestamp","ask_amount","ask_price","bid_price","bid_amount"]
[1758674044718,26.67,214.94,214.85,12.32568247]
[1758674044917,0.67,214.93,214.85,12.32568247]
[1758674045824,0.67,214.93,214.86,4.65419342]
[1758674046025,0.67,214.93,214.86,0.69]
[1758674046228,26.0,214.89,214.82,0.69]
[1758674046422,26.67,214.89,214.82,0.69]
[1758674046734,26.67,214.89,214.78,11.83944541]
[1758674046942,0.67,214.88,214.78,12.52944541]
[1758674047126,26.0,214.85,214.78,12.52944541]
[1758674047837,0.67,214.84,214.78,0.2]
[1758674048022,26.0,214.81,214.78,0.2]
[1758674048222,26.0,214.8,214.78,0.2]
[1758674049136,0.67,214.79,214.78,0.2]
[1758674049436,1.83646547,214.79,214.78,0.2]
[1758674051047,6.49217569,214.79,214.78,0.2]
[1758674051218,27.83646547,214.79,214.78,0.2]
[1758674051418,64.31646547,214.79,214.78,0.2]
[1758674052049,37.62646547,214.79,214.78,0.2]
[1758674052623,36.46,214.79,214.78,0.2]
[1758674052840,133.9,214.82,214.78,0.2]
[1758674053149,26.0,214.79,214.78,5.55591861]
[1758674053533,26.0,214.79,214.78,0.2]
[1758674053928,26.67,214.79,214.78,0.2]
[1758674054419,0.67,214.79,214.78,0.2]
[1758674054942,5.32571022,214.79,214.78,0.2]
[1758674055747,6.49229917,214.79,214.78,0.2]
[1758674056322,1.83658895,214.79,214.78,0.2]
[1758674056527,5.32571022,214.79,214.78,0.2]
[1758674057524,0.67,214.79,214.78,0.2]
[1758674057725,5.32571022,214.79,214.78,0.2]
[1758674058041,0.67,214.79,214.78,0.2]
[1758674058230,5.32571022,214.79,214.78,0.2]
[1758674059142,18.92130423,214.79,214.78,0.2]
[1758674062731,55.44130423,214.79,214.78,0.2]
[1758674063260,18.92130423,214.79,214.78,0.2]
[1758674063456,55.44130423,214.79,214.78,0.2]
[1758674064249,54.77130423,214.79,214.78,0.2]
[1758674064438,55.43130423,214.79,214.78,0.2]
[1758674065838,20.0,214.88,214.78,0.2]
[1758674066065,26.0,214.81,214.78,0.2]
[1758674066364,14.25559401,214.84,214.78,0.2]
[1758674066365,36.5,214.8,214.78,0.2]
[1758674066533,36.5,214.79,214.78,0.2]
[1758674066734,50.75559401,214.79,214.78,0.2]
[1758674067465,55.41130423,214.79,214.78,0.2]
[1758674068273,56.57798631,214.79,214.78,0.2]
[1758674070044,55.93798631,214.79,214.78,0.2]
[1758674070236,56.59798631,214.79,214.78,0.2]
[1758674076136,20.07798631,214.79,214.78,0.2]
[1758674076544,56.61798631,214.79,214.78,0.2]
[1758674077446,56.61798631,214.79,214.73,0.68]
[1758674077447,26.0,214.71,214.7,0.88]
[1758674077655,62.52,214.71,214.7,0.88]
[1758674078257,67.17744492,214.71,214.7,0.88]
[1758674078453,67.17744492,214.71,214.7,0.2]
[1758674078667,80.77303893,214.71,214.7,0.2]
[1758674079957,81.43303893,214.71,214.7,0.2]
[1758674080469,85.16822025,214.71,214.7,0.2]
[1758674080655,86.33536215,214.71,214.7,0.2]
[1758674081856,85.67536215,214.71,214.7,0.2]
[1758674083066,85.65536215,214.71,214.7,0.2]
[1758674083269,49.15536215,214.71,214.7,0.2]
[1758674083468,85.67539124,214.71,214.7,0.2]
[1758674083768,86.33539124,214.71,214.7,0.2]
[1758674084885,88.20433178,214.71,214.7,0.2]
[1758674085465,87.54433178,214.71,214.7,0.2]
[1758674085962,51.02433178,214.71,214.7,0.2]
[1758674086270,85.65539124,214.71,214.7,0.2]
[1758674088755,49.15539124,214.71,214.7,0.88]
[1758674088963,41.38235231,214.71,214.7,0.88]
[1758674089251,46.03979723,214.71,214.7,0.88]
[1758674090778,46.03979723,214.71,214.7,0.2]
[1758674091768,44.87262624,214.71,214.7,0.2]
[1758674091955,46.03972681,214.71,214.7,0.89]
[1758674092550,9.55972681,214.71,214.7,0.89]
[1758674092755,46.05972681,214.71,214.7,0.89]
[1758674092966,46.05972681,214.71,214.7,0.2]
[1758674093861,46.05972681,214.71,214.7,0.89]
[1758674094478,66.21518132,214.71,214.7,0.89]
[1758674095049,70.87262624,214.71,214.7,0.89]
[1758674096364,34.39262624,214.71,214.7,0.89]
[1758674096566,66.21518132,214.71,214.7,0.89]
[1758674096752,70.87262624,214.71,214.7,0.89]
[1758674097371,84.46822025,214.71,214.7,0.2]
[1758674097574,88.25700013,214.71,214.7,0.2]
[1758674097959,87.58700013,214.71,214.7,0.2]
[1758674100374,88.25700013,214.71,214.7,0.2]
[1758674100579,13.59559401,214.7,214.68,0.2]
[1758674100760,36.46,214.69,214.68,0.2]
[1758674101268,38.32894055,214.69,214.68,0.2]
[1758674102075,26.0,214.69,214.68,0.89]
[1758674102281,80.71347281,214.69,214.68,0.89]
[1758674103274,39.59559401,214.69,214.68,0.89]
[1758674103498,3.73518132,214.71,214.68,0.89]
[1758674103667,36.46,214.71,214.69,0.69]
[1758674103989,13.59559401,214.74,214.69,0.69]
[1758674104198,3.1216722,214.75,214.69,5.34781258]
[1758674104494,36.48,214.74,214.7,0.69]
[1758674104798,3.65874129,214.75,214.7,0.69]
[1758674104967,36.48,214.76,214.7,0.69]
[1758674105288,26.0,214.73,214.7,0.69]
[1758674106189,26.0,214.73,214.71,4.65744492]
[1758674106488,26.0,214.73,214.72,0.69]
[1758674106891,36.48,214.76,214.72,0.69]
[1758674107077,26.0,214.73,214.72,0.69]
[1758674107487,36.46,214.79,214.72,0.69]
[1758674107984,26.0,214.76,214.72,0.69]
[1758674108377,26.0,214.76,214.72,5.34714848]
[1758674108684,3.87588335,214.84,214.73,0.69]
[1758674108685,26.0,214.74,214.73,0.69]
[1758674110076,36.48,214.75,214.73,0.69]
[1758674110277,133.9,214.74,214.73,0.69]
[1758674110470,133.9,214.74,214.7,0.69]
[1758674110669,36.46,214.73,214.71,0.69]
[1758674111079,26.0,214.7,214.69,0.69]
[1758674111367,26.0,214.69,214.68,0.2]
[1758674111685,76.74559401,214.69,214.68,0.2]
[1758674112097,79.87069394,214.69,214.68,0.2]
[1758674112390,84.52857274,214.69,214.68,0.2]
[1758674113475,48.04857274,214.69,214.68,0.2]
[1758674113778,84.58857274,214.69,214.68,0.2]
[1758674115979,86.45768795,214.69,214.68,0.2]
[1758674116665,86.43768795,214.69,214.68,0.2]
[1758674117165,85.76768795,214.69,214.68,0.2]
[1758674119396,85.74768795,214.69,214.68,0.2]
[1758674121077,86.41768795,214.69,214.68,0.2]
[1758674121278,13.59559401,214.68,214.67,0.2]
[1758674121475,16.72069394,214.68,214.67,0.2]
[1758674121674,21.37878971,214.68,214.67,0.2]
[1758674121875,57.87878971,214.68,214.67,0.2]
[1758674122070,21.37878971,214.68,214.67,0.2]
[1758674122276,57.89878971,214.68,214.67,0.92]
[1758674122574,57.89878971,214.68,214.67,0.2]
[1758674123177,54.77368978,214.68,214.67,0.92]
[1758674123376,67.17809577,214.68,214.67,0.92]
[1758674123795,67.17809577,214.68,214.67,0.2]
[1758674123977,80.77368978,214.68,214.67,0.2]
[1758674124177,81.44368978,214.68,214.67,0.2]
[1758674124376,85.74361683,214.68,214.67,0.2]
[1758674124576,90.40367967,214.68,214.67,0.2]
[1758674125204,89.73367967,214.68,214.67,0.2]
[1758674126000,53.21367967,214.68,214.67,0.2]
[1758674126199,89.71367967,214.68,214.67,0.2]
[1758674126718,85.05361683,214.68,214.67,0.2]
[1758674128812,48.55361683,214.68,214.67,0.92]
[1758674129010,1.16729926,214.68,214.67,0.92]
[1758674129313,37.64729926,214.68,214.67,0.92]
[1758674129714,27.16729926,214.68,214.67,0.92]
[1758674129889,63.64729926,214.68,214.67,0.92]
[1758674130415,37.64729926,214.68,214.67,0.92]
[1758674131911,1.16729926,214.68,214.67,0.92]
[1758674132095,36.48,214.68,214.67,0.92]
[1758674132300,37.64729926,214.68,214.67,0.92]
[1758674132501,37.64729926,214.68,214.67,0.2]
[1758674132815,55.90098904,214.68,214.67,0.2]
[1758674133996,59.03269756,214.68,214.67,0.2]
[1758674136310,63.69277491,214.68,214.67,0.2]
[1758674139016,53.21277491,214.68,214.67,0.2]
[1758674139198,59.03269756,214.68,214.67,0.2]
[1758674139696,59.03269756,214.68,214.67,0.92]
[1758674139898,59.03269756,214.68,214.67,0.2]
[1758674140218,59.03268152,214.68,214.67,0.2]
[1758674143016,63.69293147,214.68,214.67,0.2]
[1758674144818,59.03268152,214.68,214.67,0.2]
[1758674148210,59.03268202,214.68,214.67,0.2]
[1758674152009,59.03268202,214.68,214.67,0.89]
[1758674152203,22.55268202,214.68,214.67,0.89]
[1758674152420,31.82537949,214.68,214.67,0.89]
[1758674152708,68.30537949,214.68,214.67,0.89]
[1758674153303,71.44338592,214.68,214.67,0.89]
[1758674154706,66.78529015,214.68,214.67,0.89]
[1758674155522,4.30529015,214.68,214.67,0.89]
[1758674155830,37.62728372,214.68,214.67,0.89]
[1758674156036,40.76529015,214.68,214.67,0.89]
[1758674156827,30.30529015,214.68,214.67,0.89]
[1758674157017,66.76529015,214.68,214.67,0.89]
[1758674158209,27.16728372,214.68,214.67,0.89]
[1758674158541,1.16728372,214.68,214.67,0.89]
[1758674158725,36.46,214.7,214.67,0.89]
[1758674159027,39.60280133,214.69,214.67,0.2]
[1758674159203,39.60280133,214.68,214.67,0.89]
[1758674160133,36.46,214.68,214.67,0.89]
[1758674161032,26.0,214.7,214.67,0.89]
[1758674161210,26.0,214.7,214.68,0.69]
[1758674161411,4.6570716,214.73,214.67,0.2]
[1758674161412,26.0,214.68,214.67,0.2]
[1758674161612,36.46,214.69,214.67,0.2]
[1758674161813,36.46,214.69,214.68,0.69]
[1758674162314,39.6028546,214.69,214.67,0.2]
[1758674162516,3.1428546,214.68,214.67,0.2]
[1758674163131,7.80095037,214.68,214.67,0.2]
[1758674163712,21.39654438,214.68,214.67,0.2]
[1758674163916,22.05654438,214.68,214.67,0.2]
[1758674164824,21.39654438,214.68,214.67,0.2]
[1758674170619,22.05654438,214.68,214.67,0.2]
[1758674172517,39.59559401,214.64,214.59,0.66]
[1758674172717,26.0,214.59,214.55,0.2]
[1758674172954,13.59559401,214.62,214.55,0.2]
[1758674172955,26.0,214.56,214.55,0.2]
[1758674173124,62.46,214.56,214.55,0.2]
[1758674173328,65.6004715,214.56,214.55,0.2]
[1758674173858,79.19606551,214.56,214.55,0.2]
[1758674174439,83.85676647,214.56,214.55,0.2]
[1758674175426,80.71629497,214.56,214.55,0.2]
[1758674175625,39.59559401,214.52,214.47,0.66]
[1758674175843,76.05559401,214.52,214.47,0.66]
[1758674176551,80.71716402,214.52,214.48,0.86]
[1758674177545,80.71716402,214.52,214.48,0.2]
[1758674177546,13.59559401,214.51,214.48,0.2]
[1758674177747,36.46,214.5,214.48,0.2]
[1758674177926,13.59559401,214.49,214.48,0.2]
[1758674178353,0.67,214.49,214.45,0.1]
[1758674178647,13.59559401,214.46,214.45,0.1]
[1758674178847,50.07559401,214.46,214.45,0.1]
[1758674179045,50.74559401,214.46,214.45,0.1]
[1758674179653,26.0,214.43,214.4,0.66]
[1758674179827,36.48,214.42,214.4,0.66]
[1758674180146,36.48,214.41,214.4,0.66]
[1758674180445,26.0,214.38,214.33,4.76568161]
[1758674180955,3.69792946,214.42,214.34,0.69]
[1758674181243,26.0,214.46,214.34,0.69]
[1758674181445,26.0,214.38,214.34,0.69]
[1758674182528,26.0,214.4,214.35,16.32843479]
[1758674182728,26.0,214.4,214.36,0.69]
[1758674184930,26.0,214.4,214.36,5.35498293]
[1758674185159,26.0,214.4,214.37,0.69]
[1758674185331,26.0,214.4,214.38,0.69]
[1758674186246,26.0,214.4,214.35,4.66526253]
[1758674186247,26.0,214.37,214.35,0.69]
[1758674186449,26.0,214.37,214.33,4.76554783]
[1758674186640,26.0,214.37,214.36,0.69]
[1758674187234,26.0,214.39,214.36,0.69]
[1758674187430,62.48,214.39,214.36,0.69]
[1758674187630,62.48,214.39,214.37,0.69]
[1758674188436,26.0,214.39,214.37,0.69]
[1758674188636,26.0,214.39,214.38,0.69]
[1758674188844,36.48,214.4,214.38,0.69]
[1758674189047,26.0,214.37,214.35,4.66524909]
[1758674189246,26.0,214.37,214.34,4.66548474]
[1758674189449,26.0,214.37,214.34,5.35548474]
[1758674189639,26.0,214.37,214.35,0.69]
[1758674190227,26.0,214.38,214.35,0.69]
[1758674191242,26.0,214.38,214.36,4.66504944]
[1758674191554,26.0,214.38,214.37,0.69]
[1758674191937,26.0,214.39,214.37,0.69]
[1758674192461,170.38,214.42,214.37,0.69]
[1758674192462,133.9,214.42,214.37,0.69]
[1758674192758,26.0,214.39,214.38,0.69]
[1758674192936,26.0,214.39,214.36,16.32767306]
[1758674193544,26.0,214.39,214.38,4.66461423]
[1758674193854,26.0,214.39,214.38,5.35461423]
[1758674197048,133.9,214.42,214.38,17.01614982]
[1758674197255,26.0,214.4,214.39,0.69]
[1758674197565,36.5,214.47,214.4,16.32462686]
[1758674197774,0.67,214.5,214.41,0.69]
[1758674197976,3.829075,214.51,214.41,0.69]
[1758674198269,36.5,214.5,214.41,0.69]
[1758674198436,26.0,214.47,214.41,0.69]
[1758674198636,36.5,214.5,214.41,0.69]
[1758674199047,26.0,214.47,214.41,0.69]
[1758674199447,29.72563098,214.51,214.41,0.69]
[1758674199644,66.20563098,214.51,214.42,39.64182444]
[1758674199871,26.0,214.49,214.43,0.69]
[1758674200167,26.0,214.49,214.42,16.32310418]
[1758674200345,26.0,214.49,214.43,0.69]
[1758674200346,62.48,214.49,214.43,0.69]
[1758674200757,29.72563098,214.51,214.43,0.69]
[1758674200950,26.0,214.46,214.43,0.69]
[1758674201467,26.0,214.46,214.42,16.32310418]
[1758674201674,26.0,214.46,214.42,17.01310418]
[1758674201877,26.0,214.46,214.43,0.69]
[1758674202177,26.0,214.46,214.42,16.32310418]
[1758674202178,26.0,214.46,214.44,0.69]
[1758674202368,26.0,214.46,214.42,16.32310418]
[1758674202759,26.0,214.46,214.43,0.69]
[1758674202963,26.0,214.46,214.44,0.69]
[1758674204555,26.0,214.46,214.45,5.35309162]
[1758674205364,26.0,214.46,214.45,4.66309162]
[1758674205674,63.15,214.5,214.45,5.35309162]
[1758674205978,63.15,214.5,214.45,4.66309162]
[1758674206275,63.15,214.5,214.45,16.32082069]
[1758674206663,0.67,214.49,214.45,16.32082069]
[1758674206858,0.67,214.49,214.45,4.66309162]
[1758674207652,62.48,214.5,214.45,4.66309162]
[1758674208081,0.67,214.5,214.45,17.01082069]
[1758674208283,66.20563098,214.51,214.46,0.69]
[1758674208577,26.0,214.47,214.45,16.32082069]
[1758674208785,26.0,214.47,214.38,13.59559401]
[1758674208947,133.9,214.46,214.39,0.69]
[1758674210756,133.9,214.46,214.4,39.64552238]
[1758674210956,133.9,214.46,214.41,0.69]
[1758674211676,133.9,214.46,214.42,0.69]
[1758674212755,26.0,214.48,214.42,0.69]
[1758674212956,26.0,214.44,214.34,4.66548474]
[1758674213160,26.0,214.4,214.33,0.1]
[1758674213364,26.0,214.36,214.33,0.1]
[1758674213768,0.66,214.35,214.33,4.76566751]
[1758674214147,26.66,214.35,214.33,4.76566751]
[1758674215174,0.66,214.34,214.33,0.1]
[1758674215376,0.66,214.34,214.18,1.05406285]
[1758674215377,13.59559401,214.33,214.18,1.05406285]
[1758674215567,26.0,214.29,214.18,1.05406285]
[1758674215765,26.0,214.25,214.18,1.05406285]
[1758674215966,63.17,214.25,214.18,1.05406285]
[1758674216389,63.17,214.25,214.19,4.66875204]
[1758674216984,0.57,214.24,214.18,1.05406285]
[1758674217182,0.57,214.23,214.18,1.05406285]
[1758674217375,0.57,214.22,214.18,5.72303206]
[1758674217572,0.57,214.24,214.18,5.72303206]
[1758674219090,26.0,214.21,214.19,0.69]
[1758674219507,0.57,214.27,214.2,0.69]
[1758674219662,26.0,214.23,214.2,0.69]
[1758674220177,0.57,214.28,214.18,17.39545712]
[1758674220374,1.73936146,214.28,214.21,16.33910647]
[1758674220681,36.58,214.3,214.22,0.69]
[1758674220869,26.0,214.27,214.21,4.66831613]
[1758674221886,0.57,214.3,214.21,5.35831613]
[1758674222093,26.0,214.32,214.21,5.35831613]
[1758674222094,1.16928951,214.31,214.22,0.69]
[1758674222289,26.0,214.27,214.22,0.69]
[1758674222488,26.0,214.27,214.23,17.02758109]
[1758674222987,26.57,214.3,214.23,17.02758109]
[1758674223183,26.57,214.3,214.23,4.66788031]
[1758674223184,63.17,214.3,214.23,4.66788031]
[1758674223571,26.57,214.29,214.23,4.66788031]
[1758674224791,0.57,214.28,214.22,4.66809821]
[1758674224996,26.57,214.27,214.22,4.66809821]
[1758674225288,0.57,214.26,214.22,4.66809821]
[1758674225693,26.0,214.27,214.22,5.35809821]
[1758674225994,26.0,214.26,214.23,0.69]
[1758674226589,26.0,214.26,214.24,0.69]
[1758674226785,26.0,214.26,214.25,4.66744457]
[1758674227384,26.0,214.26,214.25,5.35744457]
[1758674227580,26.0,214.26,214.25,4.66744457]
[1758674228183,133.9,214.29,214.25,4.66744457]
[1758674228184,133.9,214.29,214.25,17.026056]
[1758674228375,133.9,214.29,214.26,0.69]
[1758674228994,38.41,214.4,214.27,16.33453119]
[1758674229193,37.76904911,214.39,214.28,0.69]
[1758674229401,36.6,214.39,214.28,0.69]
[1758674229594,26.0,214.36,214.28,0.69]
[1758674229780,36.6,214.39,214.28,0.69]
[1758674230179,26.0,214.36,214.28,0.69]
[1758674230701,40.31009588,214.39,214.28,0.69]
[1758674230902,26.0,214.36,214.28,0.69]
[1758674231198,26.0,214.36,214.29,16.33300666]
[1758674231503,26.0,214.36,214.3,0.69]
[1758674231998,26.0,214.39,214.3,0.69]
[1758674232504,26.0,214.38,214.3,0.69]
[1758674232685,37.17,214.41,214.3,0.69]
[1758674233023,0.57,214.44,214.31,13.59559401]
[1758674233204,4.24817373,214.47,214.33,13.59559401]
[1758674233501,0.57,214.47,214.35,13.59559401]
[1758674233686,0.57,214.47,214.36,0.68]
[1758674234196,26.0,214.46,214.36,0.68]
[1758674234403,34.96,214.48,214.36,0.68]
[1758674234590,36.6,214.49,214.36,0.68]
[1758674234789,26.0,214.46,214.36,0.68]
[1758674235204,40.95980567,214.5,214.37,53.24666458]
[1758674235386,40.95980567,214.5,214.38,0.68]
[1758674235800,26.0,214.47,214.38,0.68]
[1758674236408,26.57,214.47,214.38,0.68]
[1758674236698,26.57,214.47,214.39,16.32538831]
[1758674236905,26.0,214.46,214.39,16.32538831]
[1758674237206,26.57,214.47,214.39,16.32538831]
[1758674237396,0.57,214.46,214.39,16.32538831]
[1758674238199,26.0,214.47,214.36,11.66235842]
[1758674238200,26.0,214.44,214.36,11.66235842]
[1758674238379,0.57,214.43,214.36,11.66235842]
[1758674238582,0.57,214.43,214.37,4.66483183]
[1758674238912,0.57,214.43,214.36,16.32740786]
[1758674239105,0.57,214.42,214.36,16.32740786]
[1758674240787,133.9,214.49,214.37,0.66]
[1758674240989,26.0,214.45,214.37,0.66]
[1758674241401,0.57,214.47,214.37,0.66]
[1758674241800,26.0,214.45,214.37,0.66]
[1758674242311,133.9,214.48,214.37,0.66]
[1758674242803,133.9,214.48,214.38,39.649221]
[1758674243005,26.0,214.45,214.38,39.649221]
[1758674243199,133.9,214.48,214.39,0.66]
[1758674243592,159.9,214.48,214.39,0.66]
[1758674245193,159.9,214.48,214.4,39.64552238]
[1758674245396,133.9,214.48,214.41,0.66]
[1758674245706,0.57,214.53,214.41,0.66]
[1758674245707,37.15,214.53,214.41,0.66]
[1758674245906,26.0,214.5,214.41,0.66]
[1758674247010,37.15,214.53,214.42,13.59559401]
[1758674247196,26.57,214.53,214.44,39.63812721]
[1758674247515,0.57,214.56,214.46,13.59559401]
[1758674247707,1.73805119,214.56,214.47,0.66]
[1758674248103,26.0,214.54,214.47,0.66]
[1758674248302,26.57,214.54,214.47,0.66]
[1758674248603,63.15,214.54,214.44,16.32158179]
[1758674248911,0.57,214.53,214.44,16.32158179]
[1758674249106,0.57,214.52,214.44,16.32158179]
[1758674249486,62.58,214.54,214.45,0.66]
[1758674249687,40.91619513,214.57,214.46,13.59559401]
[1758674249892,26.0,214.54,214.47,0.66]
[1758674250093,37.15,214.57,214.47,0.66]
[1758674250517,26.0,214.54,214.47,0.66]
[1758674251414,26.0,214.55,214.48,53.2263288]
[1758674251615,0.57,214.54,214.48,16.31853785]
[1758674251915,0.57,214.53,214.48,16.31853785]
[1758674252089,0.57,214.52,214.48,16.31853785]
[1758674252491,26.57,214.54,214.48,16.31853785]
[1758674252718,0.57,214.54,214.48,16.31853785]
[1758674253500,0.57,214.54,214.48,11.65609847]
[1758674253696,0.57,214.53,214.48,11.65609847]
[1758674254014,0.57,214.52,214.48,11.65609847]
[1758674254227,26.57,214.55,214.48,12.31609847]
[1758674255124,26.0,214.54,214.48,11.65609847]
[1758674255499,26.0,214.53,214.48,11.65609847]
[1758674255698,26.57,214.53,214.48,11.65609847]
[1758674256899,26.57,214.53,214.47,4.66265678]
[1758674257217,26.57,214.53,214.47,16.31929873]
[1758674257590,0.57,214.53,214.47,16.31929873]
[1758674257797,26.57,214.53,214.47,16.31929873]
[1758674258627,0.57,214.52,214.45,4.66309162]
[1758674258830,26.0,214.48,214.45,4.66309162]
[1758674258991,133.9,214.47,214.45,4.66309162]
[1758674259705,133.9,214.47,214.44,16.32116148]
[1758674260912,26.0,214.45,214.44,4.66330908]
[1758674261212,133.9,214.47,214.39,23.3209053]
[1758674261213,26.0,214.44,214.42,4.66364732]
[1758674261613,26.57,214.44,214.42,4.66364732]
[1758674261812,0.57,214.43,214.37,11.66188983]
[1758674262014,0.57,214.42,214.37,11.66188983]
[1758674262227,0.57,214.41,214.37,11.66188983]
[1758674263123,0.57,214.43,214.37,11.66188983]
[1758674263731,26.0,214.39,214.27,4.66700891]
[1758674263939,0.57,214.38,214.3,0.66]
[1758674265045,26.0,214.39,214.31,16.33148242]
[1758674265225,26.0,214.38,214.32,14.25559401]
[1758674265435,26.0,214.38,214.33,0.66]
[1758674266233,26.0,214.39,214.34,0.66]
[1758674266435,26.0,214.39,214.31,39.6621716]
[1758674266643,26.0,214.39,214.32,0.66]
[1758674267137,26.0,214.39,214.33,16.32995847]
[1758674267348,26.0,214.39,214.34,0.66]
[1758674267562,26.0,214.42,214.35,13.59559401]
[1758674267750,26.0,214.42,214.36,0.66]
[1758674269320,26.0,214.42,214.37,16.32691141]
[1758674269520,26.0,214.42,214.37,16.98691141]
[1758674270231,26.0,214.42,214.38,0.67]
[1758674270949,26.0,214.42,214.37,16.32691141]
[1758674271133,26.0,214.42,214.37,16.99691141]
[1758674272050,0.57,214.41,214.37,11.66207958]
[1758674272239,0.57,214.41,214.36,4.66504944]
[1758674272568,0.57,214.4,214.36,4.66504944]
[1758674273228,0.57,214.39,214.34,4.66527323]
[1758674273430,0.57,214.38,214.34,4.66527323]
[1758674273951,26.0,214.34,214.28,12.33657029]
[1758674274154,26.0,214.34,214.28,17.0033614]
[1758674275146,26.57,214.34,214.28,16.3333614]
[1758674276250,26.57,214.34,214.28,11.66657029]
[1758674277657,26.0,214.3,214.28,11.66657029]
[1758674277854,26.0,214.3,214.27,4.66700891]
[1758674278065,26.0,214.3,214.25,4.66734148]
[1758674278234,26.57,214.3,214.25,4.66734148]
[1758674279336,26.57,214.3,214.25,5.33734148]
[1758674279745,26.57,214.3,214.24,16.33647742]
[1758674280758,26.0,214.3,214.25,0.67]
[1758674281150,26.0,214.3,214.26,0.67]
[1758674281864,159.9,214.29,214.27,0.67]
[1758674282057,26.0,214.29,214.28,4.66679111]
[1758674282951,26.0,214.29,214.27,4.66700891]
[1758674283565,0.57,214.36,214.28,0.67]
[1758674284163,26.0,214.33,214.28,0.67]
[1758674284363,26.0,214.33,214.29,0.67]
[1758674284569,26.0,214.33,214.27,17.00453119]
[1758674286351,26.0,214.33,214.27,16.33453119]
[1758674286551,26.0,214.33,214.28,0.67]
[1758674286744,26.0,214.33,214.29,0.67]
[1758674286941,26.0,214.33,214.27,16.33453119]
[1758674286942,26.57,214.37,214.3,0.67]
[1758674287268,11.65870643,214.44,214.3,0.67]
[1758674287269,0.57,214.39,214.3,0.67]
[1758674287582,26.0,214.32,214.31,16.33148242]
[1758674287868,26.0,214.32,214.31,17.00148242]
[1758674289378,159.9,214.35,214.31,17.00148242]
[1758674289688,26.0,214.33,214.32,0.67]
[1758674289848,133.9,214.35,214.32,0.67]
[1758674290048,26.0,214.33,214.31,16.33148242]
[1758674290353,133.9,214.35,214.31,16.33148242]
[1758674290669,133.9,214.35,214.32,0.67]
[1758674290861,133.9,214.35,214.33,0.67]
[1758674291167,133.9,214.35,214.31,16.33148242]
[1758674291168,133.9,214.35,214.31,17.00148242]
[1758674291948,133.9,214.35,214.32,0.67]
[1758674292155,0.57,214.34,214.31,4.66613783]
[1758674293160,0.57,214.33,214.31,4.66613783]
[1758674293556,0.57,214.33,214.29,4.66657333]
[1758674294771,133.9,214.32,214.29,4.66657333]
[1758674295163,0.57,214.31,214.29,4.66657333]
[1758674295469,133.9,214.32,214.27,11.66722109]
[1758674295772,134.47,214.32,214.27,11.66722109]
[1758674296354,133.9,214.32,214.26,4.66722673]
[1758674296555,160.47,214.31,214.26,4.66722673]
[1758674296742,0.57,214.3,214.26,4.66722673]
[1758674296942,159.9,214.31,214.26,4.66722673]